bitfinex/quotes_SOLUSD_20250207
["timestamp","ask_amount","ask_price","bid_price","bid_amount"]
[1738887796435,25.95216919,192.1,192.02,25.95216919]
[1738887796646,30.11656919,192.1,192.03,25.95216919]
[1738887796933,20.0,192.06,192.02,25.95216919]
[1738887797438,30.11656919,192.1,192.02,25.95216919]
[1738887797846,20.0,192.07,192.03,25.95216919]
[1738887798051,4.1644,192.1,192.03,25.95216919]
[1738887798362,4.1644,192.1,192.04,25.95216919]
[1738887798541,30.11596919,192.14,192.07,25.95216919]
[1738887798745,4.1638,192.14,192.08,25.95216919]
[1738887799360,25.95216919,192.13,192.06,25.95216919]
[1738887799660,30.11596919,192.14,192.06,25.95216919]
[1738887799852,20.0,192.12,192.08,25.95216919]
[1738887800359,4.1638,192.14,192.08,25.95216919]
[1738887800561,4.1638,192.14,192.07,25.95216919]
[1738887800736,50.11596919,192.14,192.07,25.95216919]
[1738887801842,25.95216919,192.12,192.05,25.95216919]
[1738887802052,20.0,192.09,192.05,25.95216919]
[1738887802236,45.95216919,192.09,192.01,25.95216919]
[1738887802434,20.0,192.05,192.01,25.95216919]
[1738887802737,20.0,192.02,191.98,25.95216919]
[1738887803054,20.0,192.02,191.97,25.95216919]
[1738887803235,24.1663,192.02,191.97,25.95216919]
[1738887803857,4.1663,192.02,191.97,25.95216919]
[1738887804064,30.11656919,192.1,192.01,25.95216919]
[1738887804366,20.0,192.07,192.03,25.95216919]
[1738887804564,20.0,192.06,192.02,25.95216919]
[1738887805370,20.0,192.04,191.95,7.6643]
[1738887805536,4.1653,192.06,191.96,25.95216919]
[1738887805537,20.0,192.02,191.96,25.95216919]
[1738887805736,20.0,192.02,191.97,25.95216919]
[1738887805964,20.0,192.04,191.99,25.95216919]
[1738887806344,20.0,192.04,191.97,0.38323982]
[1738887806542,20.0,192.04,191.99,25.95216919]
[1738887806958,30.11746919,192.06,191.99,25.95216919]
[1738887807153,4.1653,192.06,191.99,25.95216919]
[1738887807359,6.49543257,192.14,191.95,12.8739]
[1738887807360,25.95216919,192.11,192.04,25.95216919]
[1738887807861,20.0,192.07,192.03,25.95216919]
[1738887808039,26.07765919,192.1,192.01,25.95216919]
[1738887808040,45.95216919,192.09,192.01,25.95216919]
[1738887809145,25.95216919,192.05,191.98,25.95216919]
[1738887809450,25.95216919,192.04,191.97,25.95216919]
[1738887809853,20.0,192.02,191.98,25.95216919]
[1738887810267,20.0,192.02,191.97,25.95216919]
[1738887810437,20.0,192.01,191.96,25.95216919]
[1738887810637,20.0,191.98,191.94,25.95216919]
[1738887811747,25.95216919,192.03,191.96,25.95216919]
[1738887812060,25.95216919,192.05,191.98,25.95216919]
[1738887812365,20.0,192.01,191.97,25.95216919]
[1738887812561,20.0,191.99,191.91,6.4572]
[1738887812760,20.0,191.96,191.92,25.95216919]
[1738887813064,20.0,191.96,191.91,25.95216919]
[1738887813763,4.1677,191.95,191.91,25.95216919]
[1738887813940,25.95216919,191.94,191.87,25.95216919]
[1738887814141,24.1677,191.95,191.86,25.95216919]
[1738887814142,20.0,191.9,191.86,25.95216919]
[1738887814567,40.53916919,191.95,191.88,25.95216919]
[1738887814757,20.0,191.92,191.88,25.95216919]
[1738887815345,20.0,191.91,191.87,25.95216919]
[1738887815545,20.0,191.91,191.86,25.95216919]
[1738887815946,4.1688,191.9,191.86,25.95216919]
[1738887816142,4.1688,191.9,191.88,0.063]
[1738887817470,24.1688,191.9,191.88,0.063]
[1738887817773,4.1679,191.94,191.88,0.063]
[1738887817984,4.1679,191.94,191.9,25.95216919]
[1738887818271,4.1971,191.98,191.93,25.95216919]
[1738887818470,4.1971,191.98,191.95,25.95216919]
[1738887818865,20.0,191.97,191.93,25.95216919]
[1738887819070,20.0,191.96,191.92,25.95216919]
[1738887819271,20.0,191.94,191.89,25.95216919]
[1738887819488,20.0,191.94,191.88,0.063]
[1738887819489,20.0,191.94,191.9,25.95216919]
[1738887819782,0.03,191.98,191.93,25.95216919]
[1738887820288,20.0,191.97,191.93,25.95216919]
[1738887821269,0.03,191.98,191.92,25.95216919]
[1738887821466,0.03,191.98,191.9,25.95216919]
[1738887821467,20.0,191.94,191.9,25.95216919]
[1738887821661,20.0,191.93,191.88,26.01516919]
[1738887821862,20.0,191.92,191.88,26.01516919]
[1738887822069,4.1971,191.98,191.91,25.95216919]
[1738887822377,25.95216919,191.96,191.88,0.063]
[1738887822671,20.37647,191.94,191.88,0.063]
[1738887823281,20.0,191.89,191.88,0.063]
[1738887823480,30.12096919,191.9,191.88,0.063]
[1738887823771,20.0,191.89,191.88,0.063]
[1738887825365,24.169,191.89,191.88,0.063]
[1738887825775,6.3994,191.92,191.88,0.063]
[1738887825967,4.1688,191.91,191.88,0.063]
[1738887826480,20.0,191.89,191.88,0.063]
[1738887827361,24.169,191.89,191.88,0.063]
[1738887828100,30.49763919,191.89,191.88,0.063]
[1738887829365,4.169,191.89,191.88,0.063]
[1738887830086,24.29449,191.89,191.88,0.063]
[1738887830278,4.29449,191.89,191.88,0.063]
[1738887830464,20.0,191.86,191.82,25.95216919]
[1738887830667,20.0,191.84,191.8,25.95216919]
[1738887831179,20.0,191.84,191.81,25.95216919]
[1738887831394,20.0,191.85,191.81,25.95216919]
[1738887831990,24.1697,191.86,191.83,25.95216919]
[1738887832180,24.1697,191.86,191.84,25.95216919]
[1738887832367,20.0,191.86,191.84,25.95216919]
[1738887832697,32.35156919,191.92,191.79,5.277]
[1738887832698,25.95216919,191.92,191.85,25.95216919]
[1738887832857,0.37647,191.91,191.85,25.95216919]
[1738887833064,20.0,191.89,191.85,25.95216919]
[1738887833259,4.1699,191.85,191.81,25.95216919]
[1738887833707,4.1696,191.87,191.83,25.95216919]
[1738887833986,4.1696,191.87,191.79,0.063]
[1738887833987,4.1696,191.87,191.85,25.95216919]
[1738887834185,4.1696,191.87,191.86,25.95216919]
[1738887834871,20.0,191.88,191.86,25.95216919]
[1738887835064,20.0,191.88,191.85,25.95216919]
[1738887835888,4.1688,191.9,191.87,25.95216919]
[1738887836188,20.0,191.87,191.83,25.95216919]
[1738887837170,4.1697,191.86,191.83,25.95216919]
[1738887837485,4.1697,191.86,191.84,25.95216919]
[1738887838066,0.12549,191.91,191.84,25.95216919]
[1738887838271,0.12549,191.91,191.85,25.95216919]
[1738887838272,20.0,191.89,191.85,25.95216919]
[1738887838690,20.0,191.89,191.86,25.95216919]
[1738887839068,24.1688,191.9,191.86,25.95216919]
[1738887841790,4.1688,191.9,191.86,25.95216919]
[1738887841973,24.1688,191.9,191.85,25.95216919]
[1738887842168,20.0,191.86,191.83,0.063]
[1738887842479,26.32863919,191.89,191.83,0.063]
[1738887842480,20.0,191.84,191.83,0.063]
[1738887843087,47.30612,191.86,191.83,0.063]
[1738887843288,46.32863919,191.86,191.83,0.063]
[1738887843885,4.1699,191.85,191.83,0.063]
[1738887844195,4.1696,191.87,191.83,0.063]
[1738887844367,20.37647,191.84,191.83,0.063]
[1738887844565,0.37647,191.84,191.83,0.063]
[1738887845890,63.91058772,191.84,191.83,0.0001]
[1738887846099,44.88833528,191.84,191.83,0.0001]
[1738887846470,46.17337102,191.84,191.83,0.0001]
[1738887851686,47.4708864,191.84,191.83,0.0001]
[1738887852911,34.05903787,191.84,191.83,0.0001]
[1738887853071,4.54657,191.84,191.83,0.0001]
[1738887854006,24.1701,191.84,191.83,0.0001]
[1738887854206,4.1701,191.84,191.83,0.0001]
[1738887855089,4.1699,191.85,191.83,0.0001]
[1738887855883,20.0,191.84,191.83,0.0001]
[1738887856284,24.1701,191.84,191.83,0.0001]
[1738887858087,14.38935482,191.89,191.83,0.0001]
[1738887858088,2.68659252,191.9,191.83,16.32580735]
[1738887858485,20.0,191.87,191.83,16.32580735]
[1738887859616,20.0,191.87,191.84,16.32570735]
[1738887860112,20.0,191.88,191.84,16.32570735]
[1738887860404,4.1692,191.88,191.84,16.32570735]
[1738887862112,4.1697,191.86,191.83,0.0001]
[1738887862280,24.1697,191.86,191.83,0.0001]
[1738887863919,4.1701,191.84,191.83,0.0001]
[1738887865597,0.03,191.86,191.83,16.32580735]
[1738887865900,0.03,191.86,191.85,16.32570735]
[1738887866497,4.1997,191.86,191.84,16.32570735]
[1738887867312,4.1997,191.86,191.83,16.32580735]
[1738887868590,4.1997,191.86,191.84,16.32570735]
[1738887868790,4.1997,191.86,191.83,16.32580735]
[1738887870392,4.1997,191.86,191.84,16.32570735]
[1738887871393,24.1997,191.86,191.83,16.32580735]
[1738887872691,4.1997,191.86,191.83,16.32580735]
[1738887873506,20.03,191.86,191.83,16.32580735]
[1738887874219,0.03,191.86,191.85,16.32570735]
[1738887874402,0.03,191.86,191.85,16.71029774]
[1738887874605,0.03,191.86,191.85,16.32570735]
[1738887876099,0.03,191.86,191.85,21.53810735]
[1738887877921,0.03,191.9,191.85,39.11738074]
[1738887878132,0.03,191.9,191.89,16.32570735]
[1738887878308,0.03,191.9,191.89,33.03528602]
[1738887879541,0.03,191.9,191.89,52.65843455]
[1738887879720,0.03,191.9,191.89,33.03528602]
[1738887880109,0.03,191.9,191.89,16.70957867]
[1738887880410,0.03,191.9,191.89,20.48444394]
[1738887881727,0.03,191.9,191.89,16.70957867]
[1738887883621,0.03,191.9,191.89,16.32570735]
[1738887883825,20.03,191.9,191.85,16.32570735]
[1738887884003,20.0,191.89,191.85,16.32570735]
[1738887884427,20.03,191.9,191.86,16.32570735]
[1738887885219,20.0,191.88,191.84,16.32570735]
[1738887885531,20.0,191.88,191.83,16.32580735]
[1738887885827,24.1694,191.87,191.83,16.32580735]
[1738887886017,4.1691,191.89,191.86,16.32570735]
[1738887886626,4.1691,191.89,191.87,16.32570735]
[1738887886808,4.1691,191.89,191.86,16.32570735]
[1738887887813,0.03,191.9,191.86,16.32570735]
[1738887888015,20.03,191.9,191.89,16.32570735]
[1738887888832,20.03,191.9,191.83,5.2128]
[1738887888833,20.03,191.9,191.88,16.32570735]
[1738887889608,24.1988,191.9,191.86,16.32570735]
[1738887890010,20.0,191.89,191.86,16.32570735]
[1738887890640,24.1691,191.89,191.86,16.32570735]
[1738887890946,0.03,191.9,191.88,16.32570735]
[1738887891240,0.03,191.9,191.89,16.32570735]
[1738887892916,0.03,191.9,191.89,21.53700735]
[1738887894314,0.03,191.9,191.89,34.94885588]
[1738887894626,0.03,191.92,191.89,53.65103323]
[1738887894830,0.03,191.92,191.91,29.73755588]
[1738887895744,0.03,191.92,191.91,34.94825588]
[1738887896641,0.03,191.98,191.91,37.32472588]
[1738887896834,0.03,191.98,191.97,16.32570735]
[1738887903442,0.03,191.98,191.95,16.32570735]
[1738887904749,0.03,191.98,191.97,16.32570735]
[1738887905454,0.03,191.98,191.95,16.32570735]
[1738887906754,0.03,191.98,191.97,16.32570735]
[1738887911052,0.03,191.98,191.97,21.53480735]
[1738887911359,0.03,191.98,191.97,21.917718]
[1738887913055,0.03,191.98,191.97,16.708618]
[1738887913238,0.03,192.06,192.05,1.0]
[1738887913440,0.03,192.1,192.06,1.0]
[1738887913753,0.03,192.1,192.09,16.32570735]
[1738887913941,0.03,192.1,192.09,30.73755588]
[1738887914141,0.03,192.12,192.1,13.41184853]
[1738887914459,0.03,192.12,192.11,16.32570735]
[1738887915250,0.03,192.12,192.11,29.73755588]
[1738887915550,0.03,192.18,192.12,20.99331853]
[1738887915860,0.03,192.18,192.17,16.32570735]
[1738887916068,0.03,192.18,192.16,16.32570735]
[1738887916372,0.03,192.18,192.17,16.32570735]
[1738887920767,0.03,192.18,192.17,29.73755588]
[1738887920947,0.03,192.22,192.21,16.32570735]
[1738887922186,0.03,192.22,192.21,16.70670633]
[1738887922370,10.4335,192.31,192.21,30.11855486]
[1738887922678,6.2734,192.31,192.3,16.32570735]
[1738887923042,4.1596,192.33,192.3,16.32570735]
[1738887923361,4.1596,192.33,192.32,16.32570735]
[1738887923668,4.1596,192.33,192.23,0.38030068]
[1738887923669,4.1596,192.33,192.3,16.32570735]
[1738887924547,4.1596,192.33,192.31,16.32570735]
[1738887924859,20.0,192.32,192.31,16.32570735]
[1738887927084,0.03,192.38,192.32,14.41184853]
[1738887927371,0.03,192.38,192.37,16.32570735]
[1738887930166,0.03,192.38,192.3,37.63391796]
[1738887930167,0.03,192.38,192.36,16.32570735]
[1738887930347,0.03,192.38,192.34,16.32570735]
[1738887930547,0.03,192.38,192.33,16.32570735]
[1738887930749,1.6604,192.38,192.32,16.32570735]
[1738887930952,1.6604,192.38,192.33,16.32570735]
[1738887931169,1.6604,192.38,192.35,16.32570735]
[1738887931473,4.1586,192.37,192.36,16.32570735]
[1738887931667,4.1586,192.37,192.35,16.32570735]
[1738887932251,4.1586,192.37,192.36,16.32570735]
[1738887933073,4.53507,192.37,192.36,16.32570735]
[1738887933273,20.0,192.34,192.29,16.32570735]
[1738887933576,20.0,192.29,192.25,16.32570735]
[1738887933871,20.0,192.28,192.24,16.32570735]
[1738887934669,20.0,192.27,192.23,26.00273235]
[1738887935269,4.161,192.26,192.23,26.00273235]
[1738887935960,4.161,192.26,192.22,26.00273235]
[1738887936973,4.161,192.26,192.12,1.063]
[1738887936974,26.00273235,192.24,192.17,26.00273235]
[1738887937177,0.25098,192.22,192.16,26.00273235]
[1738887937381,20.0,192.19,192.15,26.00273235]
[1738887938377,26.00273235,192.25,192.18,26.00273235]
[1738887938581,0.97578089,192.26,192.24,1.0]
[1738887938883,6.1766,192.38,192.26,1.0]
[1738887939091,6.1766,192.38,192.37,26.00273235]
[1738887939390,0.03,192.38,192.37,26.00273235]
[1738887940485,0.03,192.38,192.37,52.38496817]
[1738887940781,0.03,192.38,192.37,53.38496817]
[1738887940961,4.1563,192.48,192.44,26.00273235]
[1738887941168,20.0,192.46,192.42,26.00273235]
[1738887941894,0.25098,192.45,192.39,26.00273235]
[1738887942111,20.0,192.44,192.39,26.00273235]
[1738887942274,20.0,192.44,192.38,26.00273235]
[1738887942479,20.0,192.42,192.37,26.00273235]
[1738887942883,4.1577,192.41,192.38,26.00273235]
[1738887943082,4.1577,192.41,192.39,26.00273235]
[1738887945497,4.1577,192.41,192.38,26.00273235]
[1738887946501,4.1577,192.41,192.39,26.00273235]
[1738887946789,4.1569,192.45,192.4,26.00273235]
[1738887946968,4.1569,192.45,192.42,26.00273235]
[1738887947479,24.1569,192.45,192.41,26.00273235]
[1738887947683,24.1569,192.45,192.4,26.00273235]
[1738887947874,24.1569,192.45,192.41,26.00273235]
[1738887949094,20.37647,192.44,192.4,26.00273235]
[1738887949492,0.03,192.41,192.4,26.00273235]
[1738887951290,0.03,192.41,192.39,26.00273235]
[1738887952895,0.03,192.41,192.4,26.00273235]
[1738887953672,0.03,192.41,192.39,26.00273235]
[1738887954402,0.03,192.41,192.4,26.00273235]
[1738887954698,0.03,192.41,192.4,52.0054647]
[1738887954999,0.03,192.41,192.4,57.2029647]
[1738887955498,4.1556,192.51,192.4,57.2029647]
[1738887955682,24.1556,192.51,192.49,26.00273235]
[1738887956377,4.1551,192.53,192.5,26.00273235]
[1738887957197,4.1551,192.53,192.49,26.00273235]
[1738887957702,4.1551,192.53,192.5,26.00273235]
[1738887958002,4.1551,192.53,192.49,26.00273235]
[1738887958893,20.0,192.49,192.45,26.00273235]
[1738887959097,0.25098,192.48,192.42,26.00273235]
[1738887959298,1.2254009,192.48,192.42,26.00273235]
[1738887959691,20.0,192.46,192.42,26.00273235]
[1738887960000,20.0,192.46,192.41,26.00273235]
[1738887960192,4.1569,192.45,192.41,26.00273235]
[1738887960800,0.9744209,192.48,192.44,26.00273235]
[1738887961108,0.9744209,192.48,192.38,20.0]
[1738887961109,10.3884,192.53,192.47,26.00273235]
[1738887961277,20.0,192.5,192.47,26.00273235]
[1738887961477,20.0,192.5,192.38,1.063]
[1738887961478,0.12549,192.48,192.42,26.00273235]
[1738887961695,20.0,192.47,192.44,26.00273235]
[1738887962104,4.1556,192.51,192.46,26.00273235]
[1738887962416,4.1556,192.51,192.48,26.00273235]
[1738887962580,24.1556,192.51,192.48,26.00273235]
[1738887963094,20.37647,192.5,192.46,26.00273235]
[1738887963308,20.0,192.49,192.42,26.00273235]
[1738887963510,20.0,192.47,192.42,26.00273235]
[1738887963811,20.0,192.45,192.41,26.00273235]
[1738887964177,20.0,192.45,192.4,26.00273235]
[1738887964391,0.25098,192.44,192.39,26.00273235]
[1738887965207,20.25098,192.41,192.38,0.063]
[1738887965384,0.25098,192.41,192.38,0.063]
[1738887966911,4.1575,192.42,192.39,26.00273235]
[1738887967417,4.1573,192.43,192.39,26.00273235]
[1738887967583,4.1573,192.43,192.4,26.00273235]
[1738887967779,4.1573,192.43,192.41,26.00273235]
[1738887968593,4.1569,192.45,192.41,26.00273235]
[1738887968812,4.1569,192.45,192.43,26.00273235]
[1738887969015,30.15773235,192.54,192.44,26.00273235]
[1738887969194,4.155,192.54,192.51,26.00273235]
[1738887969522,4.155,192.54,192.52,26.00273235]
[1738887969704,20.0,192.51,192.47,26.00273235]
[1738887969897,20.0,192.5,192.45,26.00273235]
[1738887970826,4.40658,192.51,192.45,26.00273235]
[1738887972817,4.40658,192.51,192.39,1.94747711]
[1738887972818,0.12549,192.5,192.42,26.00273235]
[1738887972999,0.25098,192.48,192.42,26.00273235]
[1738887973312,0.25098,192.48,192.43,26.00273235]
[1738887973612,26.00273235,192.5,192.43,26.00273235]
[1738887974021,0.25098,192.5,192.43,26.00273235]
[1738887974513,4.156,192.49,192.43,26.00273235]
[1738887974812,20.0,192.47,192.43,26.00273235]
[1738887975918,4.1567,192.46,192.43,26.00273235]
[1738887976618,0.25098,192.45,192.41,0.063]
[1738887976801,0.25098,192.43,192.41,0.063]
[1738887977610,20.0,192.44,192.41,26.06573235]
[1738887977817,4.1573,192.43,192.41,26.06573235]
[1738887978117,4.1573,192.43,192.41,0.063]
[1738887978494,4.1573,192.43,192.41,26.06573235]
[1738887978707,4.1571,192.45,192.41,26.06573235]
[1738887980317,4.1571,192.45,192.41,0.063]
[1738887980520,0.25098,192.44,192.41,0.063]
[1738887981919,4.1573,192.43,192.41,0.063]
[1738887984499,20.37647,192.42,192.41,0.063]
[1738887984705,46.37920235,192.42,192.41,0.063]
[1738887985717,50.53670235,192.42,192.41,0.063]
[1738887986815,24.53397,192.42,192.41,0.063]
[1738887987814,4.1575,192.42,192.41,0.063]
[1738887988132,24.40848,192.42,192.41,0.063]
[1738887988699,4.40848,192.42,192.41,0.063]
[1738887988920,4.1575,192.42,192.41,0.063]
[1738887990028,4.53397,192.42,192.41,0.063]
[1738887992203,4.53397,192.42,192.41,0.0001]
[1738887992408,81.47245088,192.42,192.41,0.0001]
[1738887992611,80.47245088,192.42,192.41,0.0001]
[1738887992910,50.47245088,192.42,192.41,0.0001]
[1738887993343,80.47245088,192.42,192.41,0.0001]
[1738887993525,37.06060235,192.42,192.41,0.0001]
[1738887993831,38.37904742,192.42,192.41,0.0001]
[1738887994037,81.79089595,192.42,192.41,0.0001]
[1738887995007,68.37904742,192.42,192.41,0.0001]
[1738887995206,37.06060235,192.42,192.41,0.0001]
[1738887995423,43.78831853,192.39,192.38,0.0001]
[1738887995631,26.00273235,192.4,192.33,0.063]
[1738887995846,0.37647,192.4,192.33,26.06573235]
[1738887996135,0.12549,192.38,192.33,0.063]
[1738887996314,4.1584,192.38,192.33,0.063]
[1738887997024,4.1584,192.38,192.34,26.00273235]
[1738887997619,24.1584,192.38,192.33,26.06573235]
[1738887999444,10.396,192.39,192.33,26.06573235]
[1738887999610,20.0,192.38,192.33,26.06573235]
[1738888000647,4.1586,192.37,192.33,16.29387763]
[1738888001340,4.1586,192.37,192.34,16.23087763]
[1738888001938,4.1586,192.37,192.33,16.29387763]
[1738888002144,24.1586,192.37,192.33,16.29387763]
[1738888002441,10.396,192.39,192.33,0.063]
[1738888002442,14.5542,192.39,192.33,0.063]
[1738888002732,0.37647,192.38,192.33,16.29387763]
[1738888002931,0.37647,192.38,192.33,0.063]
[1738888003715,16.23087763,192.37,192.33,0.063]
[1738888003928,17.33130928,192.38,192.33,0.063]
[1738888004139,0.12549,192.38,192.33,0.063]
[1738888004437,14.5542,192.39,192.33,0.063]
[1738888004650,0.25098,192.38,192.33,0.063]
[1738888004803,0.37647,192.38,192.33,0.063]
[1738888005009,0.25098,192.38,192.33,0.063]
[1738888005207,16.48185763,192.38,192.33,0.063]
[1738888005642,0.25098,192.38,192.33,16.29387763]
[1738888006146,0.25098,192.38,192.34,16.23087763]
[1738888006851,4.1586,192.37,192.33,0.063]
[1738888007166,14.5552,192.37,192.33,0.063]
[1738888008048,0.25098,192.36,192.33,0.063]
[1738888008846,4.159,192.35,192.33,0.063]
[1738888009223,16.23087763,192.39,192.33,0.063]
[1738888009545,4.1582,192.39,192.36,16.23087763]
[1738888010754,82.1,192.41,192.36,16.23087763]
[1738888010916,4.158,192.4,192.35,16.23087763]
[1738888011916,4.1877,192.42,192.39,16.23087763]
[1738888013643,0.03,192.42,192.39,16.23087763]
[1738888014048,0.03,192.42,192.37,16.23087763]
[1738888014436,20.03,192.42,192.37,16.23087763]
[1738888015473,4.1577,192.41,192.37,16.23087763]
[1738888018957,0.03,192.42,192.37,16.23087763]
[1738888019755,0.03,192.41,192.37,16.23087763]
[1738888019957,0.03,192.41,192.35,16.23087763]
[1738888021042,4.1877,192.41,192.35,16.23087763]
[1738888022664,0.03,192.41,192.39,16.23087763]
[1738888022865,0.03,192.41,192.4,16.23087763]
[1738888024860,0.03,192.41,192.38,16.23087763]
[1738888025066,0.03,192.41,192.37,16.23087763]
[1738888025266,0.03,192.41,192.38,16.23087763]
[1738888028863,0.03,192.41,192.36,16.23087763]
[1738888029044,20.03,192.41,192.34,17.83397763]
[1738888029344,36.23087763,192.39,192.33,0.063]
[1738888029539,36.23087763,192.39,192.33,16.29387763]
[1738888029540,20.0,192.39,192.33,16.29387763]
[1738888030370,20.0,192.39,192.34,16.23087763]
[1738888030575,4.1584,192.38,192.34,16.23087763]
[1738888031771,4.1584,192.38,192.33,0.063]
[1738888032481,4.1584,192.38,192.33,16.29387763]
[1738888033848,0.03,192.41,192.35,16.23087763]
[1738888034181,4.1581,192.4,192.35,16.23087763]
[1738888035979,4.43868,192.41,192.35,16.23087763]
[1738888036192,14.83308,192.41,192.35,16.23087763]
[1738888040597,14.5537,192.39,192.33,0.063]
[1738888040893,14.5537,192.39,192.33,16.29387763]
[1738888042199,4.1582,192.39,192.33,16.29387763]
[1738888042704,4.1582,192.39,192.35,16.29387763]
[1738888046795,4.1582,192.39,192.35,0.063]
[1738888048195,0.12549,192.38,192.35,0.063]
[1738888048376,20.12549,192.34,192.33,0.0001]
[1738888048572,20.37647,192.3,192.22,16.23087763]
[1738888048780,16.23087763,192.27,192.2,24.10775985]
[1738888049187,0.25098,192.27,192.21,16.29387763]
[1738888050190,4.161,192.26,192.21,0.063]
[1738888052497,36.23087763,192.23,192.21,0.063]
[1738888052700,20.0,192.19,192.18,0.063]
[1738888053085,110.40919037,192.26,192.18,0.063]
[1738888053086,16.23087763,192.24,192.18,0.063]
[1738888053491,16.48185763,192.25,192.18,0.063]
[1738888053693,16.48185763,192.25,192.18,16.29387763]
[1738888054203,20.39227763,192.24,192.21,0.063]
[1738888056105,16.23087763,192.23,192.21,0.063]
[1738888056486,4.1614,192.24,192.21,0.063]
[1738888056487,36.48185763,192.22,192.21,0.063]
[1738888057779,40.64365763,192.22,192.21,0.063]
[1738888058204,40.64365763,192.22,192.18,0.063]
[1738888058205,51.04835763,192.22,192.18,0.0001]
[1738888058403,16.23087763,192.19,192.18,0.0001]
[1738888058589,16.60734763,192.19,192.18,0.0001]
[1738888059812,36.48185763,192.16,192.15,0.063]
[1738888060791,18.80477104,192.18,192.15,0.063]
[1738888061101,82.1,192.18,192.15,16.29387763]
[1738888061291,82.1,192.18,192.16,16.23087763]
[1738888061804,4.1618,192.22,192.17,16.23087763]
[1738888062000,4.1618,192.22,192.19,16.23087763]
[1738888063512,4.1612,192.25,192.2,16.23087763]
[1738888064488,4.1612,192.25,192.19,16.23087763]
[1738888064908,4.1612,192.25,192.18,16.23087763]
[1738888065095,20.39207763,192.25,192.18,16.23087763]
[1738888065290,16.23087763,192.24,192.17,16.23087763]
[1738888065489,16.23087763,192.25,192.18,16.23087763]
[1738888066189,36.23087763,192.23,192.19,0.063]
[1738888066402,16.23087763,192.22,192.19,0.063]
[1738888067415,4.1621,192.21,192.19,0.063]
[1738888068817,20.0,192.2,192.19,0.063]
[1738888068988,0.25098,192.2,192.15,0.063]
[1738888069191,16.60734763,192.16,192.15,0.0001]
[1738888069421,37.58343157,192.16,192.15,0.0001]
[1738888069630,41.74653157,192.16,192.15,0.0001]
[1738888072713,24.1631,192.16,192.15,0.0001]
[1738888073020,4.1629,192.18,192.15,0.0001]
[1738888073223,4.1618,192.22,192.15,16.23097763]
[1738888073414,4.1618,192.22,192.16,16.23087763]
[1738888074297,4.1618,192.22,192.15,16.23097763]
[1738888074916,20.0,192.2,192.15,16.23097763]
[1738888076026,4.1625,192.19,192.15,16.23097763]
[1738888078717,4.1616,192.24,192.18,16.23087763]
[1738888079021,4.1616,192.24,192.21,16.23087763]
[1738888079224,26.63277763,192.28,192.21,16.23087763]
[1738888079433,20.0,192.25,192.19,16.23087763]
[1738888079738,20.03,192.25,192.19,16.23087763]
[1738888080530,0.28098,192.25,192.19,16.23087763]
[1738888080819,4.1614,192.24,192.19,16.23087763]
[1738888081323,4.1614,192.24,192.17,16.23087763]
[1738888081533,4.1614,192.24,192.19,16.23087763]
[1738888082627,4.1912,192.25,192.19,16.23087763]
[1738888082923,4.1912,192.25,192.21,16.23087763]
[1738888083228,24.1912,192.25,192.21,16.23087763]
[1738888085212,24.1912,192.25,192.19,16.23087763]
[1738888085427,20.25098,192.24,192.19,16.23087763]
[1738888085808,4.1616,192.23,192.19,16.23087763]
[1738888090752,4.1614,192.24,192.21,16.23087763]
[1738888092054,4.1614,192.24,192.19,16.23087763]
[1738888094836,98.58185763,192.23,192.18,0.063]
[1738888095036,20.37647,192.19,192.18,0.063]
[1738888095240,36.60734763,192.19,192.18,0.063]
[1738888095543,98.33087763,192.18,192.15,0.0001]
[1738888095731,82.1,192.18,192.15,0.0001]
[1738888096938,86.2627,192.18,192.15,16.23097763]